[Event "XX Gran Hotel Bali-B 2023"]
[Site "Benidorm"]
[Date "2023.12.02"]
[Round "2.10"]
[White "Medina Romero, Jose"]
[Black "Voet, Dirk"]
[Result "1-0"]
[ECO "A48"]
[WhiteElo "1963"]
[BlackElo "1773"]
[Annotator "NA RC"]
[PlyCount "85"]
[EventDate "2023.12.02"]
[EventType "swiss"]
[EventCountry "ESP"]
[SourceTitle "playchess.com"]
[Source "ChessBase"]
[SourceQuality "1"]
[TimeControl "5400+30"]

1. d4 {[%emt 0:00:30]} g6 {[%emt 0:21:24]} 2. Nf3 {[%emt 0:04:06]} Bg7 {[%emt 0:03:58]} 3. e3 {[%emt 0:00:11]} d6 {[%emt 0:01:11]} 4. Be2 {[%emt 0:00:07]} Nf6 {[%emt 0:01:14]} 5. O-O {[%emt 0:00:08]} O-O {[%emt 0:00:03]} 6. b4 {[%emt 0:00:04]} b6 {[%emt 0:02:15]} 7. Bb2 {[%emt 0:00:15]} Bb7 {[%emt 0:00:33]} 8. c4 {[%emt 0:00:20]} Nfd7 {[%emt 0:02:10]} 9. Qc2 {[%emt 0:03:44]} e5 {[%emt 0:01:19]} 10. Nc3 {[%emt 0:00:22]} Nc6 {[%emt 0:02:10]} 11. b5 {[%emt 0:01:39]} Ne7 {[%emt 0:01:04]} 12. Rfd1 {[%emt 0:00:28]} Qe8 {[%emt 0:08:36]} 13. a4 {[%emt 0:00:48]} a5 {[%emt 0:00:16]} 14. bxa6 {[%emt 0:00:41]} Bxa6 {[%emt 0:00:57]} 15. Nb5 {[%emt 0:00:21]} Rc8 {[%emt 0:00:23]} 16. Rac1 {[%emt 0:06:21]} Nc6 {[%emt 0:02:49]} 17. c5 {[%emt 0:05:14]} e4 {[%emt 0:09:38]} 18. Nd2 {[%emt 0:04:29]} d5 {[%emt 0:00:23]} 19. Nxc7 {[%emt 0:00:58]} Rxc7 {[%emt 0:00:18]} 20. Bxa6 {[%emt 0:00:06]} Nb4 {[%emt 0:00:07]} 21. Qb3 {[%emt 0:00:47]} Nxa6 {[%emt 0:00:34]} 22. c6 {[%emt 0:01:13]} Ndc5 {[%emt 0:11:03]} 23. dxc5 {[%emt 0:05:56]} Nxc5 {[%emt 0:00:10]} 24. Qxb6 {[%emt 0:02:29]} Rxc6 {[%emt 0:01:05]} 25. Qb5 {[%emt 0:20:44]} Bxb2 {[%emt 0:00:16]} 26. Rxc5 {[%emt 0:00:12]} Rxc5 {[%emt 0:00:06]} 27. Qxc5 {[%emt 0:00:08]} Qxa4 {[%emt 0:00:09]} 28. Rb1 {[%emt 0:01:06]} Bf6 {[%emt 0:03:11]} 29. Qxd5 {[%emt 0:05:05]} Rd8 {[%emt 0:02:09]} 30. Qxe4 {[%emt 0:00:28]} Qa2 {[%emt 0:07:55]} 31. Nf3 {[%emt 0:02:18]} Kg7 {[%emt 0:00:11]} 32. g3 {[%emt 0:00:06]} Ra8 {[%emt 0:01:35]} 33. Kg2 {[%emt 0:01:41]} Ra5 {[%emt 0:01:40]} 34. Rb7 {[%emt 0:01:35]} Ra7 {[%emt 0:05:18]} 35. Rxa7 {[%emt 0:06:48]} Qxa7 {[%emt 0:00:02]} 36. h4 {[%emt 0:00:09]} Qc5 {[%emt 0:00:50]} 37. Qf4 {[%emt 0:01:17]} h6 {[%emt 0:02:21]} 38. g4 {[%emt 0:00:58]} Qd5 {[%emt 0:03:32]} 39. e4 {[%emt 0:06:58]} Qc4 {[%emt 0:01:06]} 40. Kg3 {[%emt 0:01:19]} Be7 {[%emt 0:00:40]} 41. g5 {[%emt 0:01:02]} hxg5 {[%emt 0:01:54]} 42. hxg5 {[%emt 0:00:06]} Qd3 {[%emt 0:01:03]} 43. Qe5+ {[%emt 0:00:16]} 1-0

[Event "XX Gran Hotel Bali-B 2023"]
[Site "Benidorm"]
[Date "2023.12.02"]
[Round "2.11"]
[White "Herrero Ferrando, Salvador"]
[Black "Navia Martin, Sergio"]
[Result "0-1"]
[ECO "B00"]
[WhiteElo "1773"]
[BlackElo "1962"]
[Annotator "NA RC"]
[PlyCount "106"]
[EventDate "2023.12.02"]
[EventType "swiss"]
[EventCountry "ESP"]
[SourceTitle "playchess.com"]
[Source "ChessBase"]
[SourceQuality "1"]
[TimeControl "5400+30"]

1. d4 {[%emt 0:00:03]} b6 {[%emt 0:02:26]} 2. e4 {[%emt 0:01:03]} Bb7 {[%emt 0:01:10]} 3. Bd3 {[%emt 0:00:33]} g6 {[%emt 0:03:03]} 4. Nf3 {[%emt 0:02:27]} Bg7 {[%emt 0:00:30]} 5. Qe2 {[%emt 0:02:19]} d6 {[%emt 0:09:02]} 6. Bf4 {[%emt 0:03:57]} Nd7 {[%emt 0:07:00]} 7. Nbd2 {[%emt 0:04:05]} e5 {[%emt 0:06:16]} 8. dxe5 {[%emt 0:02:13]} Nxe5 {[%emt 0:05:15]} 9. Nxe5 {[%emt 0:00:57]} dxe5 {[%emt 0:01:08]} 10. Bg3 {[%emt 0:03:07]} Ne7 {[%emt 0:02:26]} 11. Rd1 {[%emt 0:01:33]} Nc6 {[%emt 0:04:29]} 12. c3 {[%emt 0:00:43]} Qe7 {[%emt 0:01:12]} 13. f3 {[%emt 0:07:47]} O-O {[%emt 0:03:16]} 14. O-O {[%emt 0:00:26]} Nd8 {[%emt 0:50:17]} 15. Nc4 {[%emt 0:03:58]} c6 {[%emt 0:00:00]} 16. Ne3 {[%emt 0:06:46]} Ne6 {[%emt 0:00:00]} 17. Ba6 {[%emt 0:05:59]} Nc5 {[%emt 0:00:00]} 18. Bxb7 {[%emt 0:00:34]} Nxb7 {[%emt 0:00:00]} 19. Rd2 {[%emt 0:01:19]} Rad8 {[%emt 0:00:00]} 20. Rfd1 {[%emt 0:02:04]} b5 {[%emt 0:00:00]} 21. b4 {[%emt 0:02:09]} Rxd2 {[%emt 0:00:00]} 22. Rxd2 {[%emt 0:00:13]} Rd8 {[%emt 0:00:00]} 23. Qd1 {[%emt 0:00:52]} Rxd2 {[%emt 0:00:00]} 24. Qxd2 {[%emt 0:00:09]} Qd6 {[%emt 0:00:00]} 25. Qc2 {[%emt 0:08:57]} h5 {[%emt 0:00:00]} 26. Kf1 {[%emt 0:03:16]} Nd8 {[%emt 0:00:00]} 27. Qd1 {[%emt 0:04:11]} Qxd1+ {[%emt 0:00:00]} 28. Nxd1 {[%emt 0:00:01]} f5 {[%emt 0:00:00]} 29. exf5 {[%emt 0:00:41]} gxf5 {[%emt 0:00:00]} 30. Bf2 {[%emt 0:00:52]} a6 {[%emt 0:00:00]} 31. Ke2 {[%emt 0:01:15]} Kf7 {[%emt 0:00:00]} 32. Kd3 {[%emt 0:01:57]} Ne6 {[%emt 0:00:00]} 33. Be3 {[%emt 0:01:04]} Nc7 {[%emt 0:00:00]} 34. c4 {[%emt 0:02:48]} Ke6 {[%emt 0:00:00]} 35. Bb6 {[%emt 0:02:04]} bxc4+ {[%emt 0:00:35]} 36. Kxc4 {[%emt 0:00:35]} Nd5 {[%emt 0:00:52]} 37. Bc5 {[%emt 0:05:26]} Bh6 {[%emt 0:01:13]} 38. Nf2 {[%emt 0:01:15]} Ne3+ {[%emt 0:03:47]} 39. Bxe3 {[%emt 0:00:44]} Bxe3 {[%emt 0:00:28]} 40. Nd3 {[%emt 0:00:19]} e4 {[%emt 0:01:05]} 41. fxe4 {[%emt 0:00:17]} fxe4 {[%emt 0:00:07]} 42. Ne1 {[%emt 0:04:40]} Ke5 {[%emt 0:00:46]} 43. Nc2 {[%emt 0:02:50]} Bg1 {[%emt 0:00:28]} 44. h3 {[%emt 0:02:41]} h4 {[%emt 0:02:09]} 45. Kc3 {[%emt 0:03:08]} Kf4 {[%emt 0:00:41]} 46. Kd2 {[%emt 0:00:09]} Kg3 {[%emt 0:02:01]} 47. Ne3 {[%emt 0:00:54]} Kf2 {[%emt 0:00:55]} 48. a3 {[%emt 0:02:47]} Bh2 {[%emt 0:00:17]} 49. Ng4+ {[%emt 0:00:08]} Kxg2 {[%emt 0:00:09]} 50. Ke3 {[%emt 0:01:19]} Kxh3 {[%emt 0:00:11]} 51. Nf2+ {[%emt 0:00:30]} Kg2 {[%emt 0:00:24]} 52. Nxe4 {[%emt 0:00:11]} Bg1+ {[%emt 0:00:38]} 53. Kf4 {[%emt 0:03:51]} h3 {[%emt 0:00:08]} 0-1

[Event "XX Gran Hotel Bali-B 2023"]
[Site "Benidorm"]
[Date "2023.12.02"]
[Round "2.12"]
[White "Westerweele, Henrik"]
[Black "Asensio Ramon, Ismael"]
[Result "1-0"]
[ECO "B22"]
[WhiteElo "1965"]
[BlackElo "1767"]
[Annotator "NA RC"]
[PlyCount "119"]
[EventDate "2023.12.02"]
[EventType "swiss"]
[EventCountry "ESP"]
[SourceTitle "playchess.com"]
[Source "ChessBase"]
[SourceQuality "1"]
[TimeControl "5400+30"]

1. e4 {[%emt 0:00:03]} c5 {[%emt 0:00:13]} 2. c3 {[%emt 0:00:07]} d5 {[%emt 0:00:09]} 3. exd5 {[%emt 0:00:11]} Qxd5 {[%emt 0:00:07]} 4. d4 {[%emt 0:00:15]} e6 {[%emt 0:00:32]} 5. Nf3 {[%emt 0:00:17]} Nc6 {[%emt 0:00:33]} 6. Bd3 {[%emt 0:01:02]} Nf6 {[%emt 0:04:56]} 7. O-O {[%emt 0:01:11]} cxd4 {[%emt 0:04:32]} 8. cxd4 {[%emt 0:00:22]} Bb4 {[%emt 0:00:42]} 9. Nc3 {[%emt 0:01:12]} Bxc3 {[%emt 0:04:33]} 10. bxc3 {[%emt 0:00:13]} O-O {[%emt 0:00:23]} 11. Re1 {[%emt 0:03:53]} h6 {[%emt 0:00:30]} 12. Bf4 {[%emt 0:04:07]} Qd8 {[%emt 0:04:34]} 13. Qd2 {[%emt 0:04:58]} Re8 {[%emt 0:02:14]} 14. Bxh6 {[%emt 0:08:03]} gxh6 {[%emt 0:00:10]} 15. Qxh6 {[%emt 0:00:05]} Ng4 {[%emt 0:24:13]} 16. Bh7+ {[%emt 0:07:09]} Kh8 {[%emt 0:00:17]} 17. Qh3 {[%emt 0:00:17]} Nf6 {[%emt 0:02:15]} 18. Ng5 {[%emt 0:14:55]} Kg7 {[%emt 0:01:33]} 19. Qg3 {[%emt 0:05:02]} Kf8 {[%emt 0:02:33]} 20. Bc2 {[%emt 0:09:14]} b6 {[%emt 0:09:18]} 21. Rad1 {[%emt 0:01:42]} Ba6 {[%emt 0:01:38]} 22. d5 {[%emt 0:07:45]} Nxd5 {[%emt 0:07:57]} 23. c4 {[%emt 0:07:02]} Bxc4 {[%emt 0:06:46]} 24. Nh7+ {[%emt 0:00:11]} Ke7 {[%emt 0:00:16]} 25. Qh4+ {[%emt 0:00:08]} Kd7 {[%emt 0:01:29]} 26. Qxc4 {[%emt 0:00:23]} Rc8 {[%emt 0:01:04]} 27. Ba4 {[%emt 0:03:52]} Rh8 {[%emt 0:00:55]} 28. Rxd5+ {[%emt 0:04:07]} exd5 {[%emt 0:00:25]} 29. Qxd5+ {[%emt 0:00:13]} Kc7 {[%emt 0:00:20]} 30. Qxc6+ {[%emt 0:00:22]} Kb8 {[%emt 0:00:15]} 31. Qe4 {[%emt 0:00:53]} Qd6 {[%emt 0:03:59]} 32. g3 {[%emt 0:04:57]} Rc5 {[%emt 0:06:37]} 33. h4 {[%emt 0:02:42]} f5 {[%emt 0:00:54]} 34. Qe7 {[%emt 0:01:01]} Qd4 {[%emt 0:01:40]} 35. Nf6 {[%emt 0:04:01]} Rc7 {[%emt 0:02:39]} 36. Bd7 {[%emt 0:00:08]} Rhc8 {[%emt 0:02:58]} 37. Qe5 {[%emt 0:03:04]} Qxe5 {[%emt 0:02:14]} 38. Rxe5 {[%emt 0:00:02]} Rf8 {[%emt 0:00:39]} 39. Re8+ {[%emt 0:01:26]} Rxe8 {[%emt 0:00:07]} 40. Bxe8 {[%emt 0:00:03]} Re7 {[%emt 0:02:12]} 41. Ba4 {[%emt 0:01:17]} a6 {[%emt 0:00:50]} 42. Nd5 {[%emt 0:03:35]} Rb7 {[%emt 0:00:44]} 43. h5 {[%emt 0:00:00]} b5 {[%emt 0:00:16]} 44. Bc2 {[%emt 0:00:00]} Rh7 {[%emt 0:00:26]} 45. Nf4 {[%emt 0:00:00]} Rf7 {[%emt 0:00:48]} 46. Ne6 {[%emt 0:00:37]} Rh7 {[%emt 0:00:27]} 47. Bd1 {[%emt 0:00:23]} Re7 {[%emt 0:00:13]} 48. Bb3 {[%emt 0:00:13]} Rh7 {[%emt 0:00:39]} 49. Nf4 {[%emt 0:00:22]} a5 {[%emt 0:00:08]} 50. Be6 {[%emt 0:00:15]} b4 {[%emt 0:00:47]} 51. Bxf5 {[%emt 0:00:03]} Rh8 {[%emt 0:00:44]} 52. g4 {[%emt 0:00:21]} a4 {[%emt 0:00:08]} 53. Bc2 {[%emt 0:00:36]} b3 {[%emt 0:00:24]} 54. Bxb3 {[%emt 0:00:29]} axb3 {[%emt 0:00:18]} 55. axb3 {[%emt 0:00:02]} Kc7 {[%emt 0:00:52]} 56. g5 {[%emt 0:00:53]} Kd6 {[%emt 0:00:30]} 57. Kg2 {[%emt 0:00:33]} Rg8 {[%emt 0:00:38]} 58. Ng6 {[%emt 0:00:58]} Ke6 {[%emt 0:00:22]} 59. Kg3 {[%emt 0:00:36]} Kd5 {[%emt 0:01:25]} 60. Kh3 {[%emt 0:00:03]} 1-0

[Event "XX Gran Hotel Bali-B 2023"]
[Site "Benidorm"]
[Date "2023.12.03"]
[Round "3.1"]
[White "Talledo Lagos, Cesar Frank"]
[Black "Ferreruela Romero, Jose Joaquin"]
[Result "1-0"]
[ECO "A80"]
[WhiteElo "1993"]
[BlackElo "1877"]
[Annotator "NA RC"]
[PlyCount "57"]
[EventDate "2023.12.02"]
[EventType "swiss"]
[EventCountry "ESP"]
[SourceTitle "playchess.com"]
[Source "ChessBase"]
[SourceQuality "1"]
[TimeControl "5400+30"]

1. Nf3 {[%emt 0:03:34]} f5 {[%emt 0:01:09]} 2. d4 {[%emt 0:00:11]} Nf6 {[%emt 0:00:36]} 3. Bf4 {[%emt 0:00:14]} g6 {[%emt 0:04:34]} 4. e3 {[%emt 0:00:46]} Bg7 {[%emt 0:00:13]} 5. h4 {[%emt 0:01:43]} d6 {[%emt 0:01:35]} 6. h5 {[%emt 0:05:55]} Nxh5 {[%emt 0:16:52]} 7. Rxh5 {[%emt 0:00:25]} gxh5 {[%emt 0:00:07]} 8. Ng5 {[%emt 0:00:40]} O-O {[%emt 0:02:34]} 9. Qxh5 {[%emt 0:02:22]} h6 {[%emt 0:00:11]} 10. Nf3 {[%emt 0:01:14]} Qe8 {[%emt 0:01:45]} 11. Qh2 {[%emt 0:05:23]} Qg6 {[%emt 0:05:26]} 12. Nc3 {[%emt 0:01:05]} e6 {[%emt 0:02:36]} 13. O-O-O {[%emt 0:02:22]} a6 {[%emt 0:07:53]} 14. Bd3 {[%emt 0:05:06]} Nc6 {[%emt 0:06:36]} 15. a3 {[%emt 0:05:54]} Qf6 {[%emt 0:09:04]} 16. Rg1 {[%emt 0:11:17]} b5 {[%emt 0:04:16]} 17. g4 {[%emt 0:02:03]} e5 {[%emt 0:12:28]} 18. g5 {[%emt 0:02:45]} hxg5 {[%emt 0:00:09]} 19. Bxg5 {[%emt 0:00:52]} Qe6 {[%emt 0:05:37]} 20. d5 {[%emt 0:01:46]} Qe8 {[%emt 0:00:08]} 21. Bh6 {[%emt 0:01:35]} Rf7 {[%emt 0:00:14]} 22. Ng5 {[%emt 0:00:18]} Re7 {[%emt 0:12:28]} 23. dxc6 {[%emt 0:00:45]} Qxc6 {[%emt 0:00:48]} 24. e4 {[%emt 0:00:27]} d5 {[%emt 0:02:42]} 25. Bxg7 {[%emt 0:04:30]} Rxg7 {[%emt 0:00:23]} 26. Rh1 {[%emt 0:00:25]} Kf8 {[%emt 0:00:53]} 27. Rg1 {[%emt 0:08:30]} dxe4 {[%emt 0:01:14]} 28. Qh8+ {[%emt 0:00:06]} Rg8 {[%emt 0:00:27]} 29. Nh7+ {[%emt 0:00:16]} 1-0

[Event "XX Gran Hotel Bali-B 2023"]
[Site "Benidorm"]
[Date "2023.12.03"]
[Round "3.2"]
[White "Mascarell Canet, Ricardo"]
[Black "Vladut, Matei"]
[Result "0-1"]
[ECO "A47"]
[WhiteElo "1886"]
[BlackElo "1989"]
[Annotator "NA RC"]
[PlyCount "114"]
[EventDate "2023.12.02"]
[EventType "swiss"]
[EventCountry "ESP"]
[SourceTitle "playchess.com"]
[Source "ChessBase"]
[SourceQuality "1"]
[TimeControl "5400+30"]

1. d4 {[%emt 0:00:04]} c5 {[%emt 0:03:31]} 2. e3 {[%emt 0:02:52]} g6 {[%emt 0:00:05]} 3. c3 {[%emt 0:00:24]} Bg7 {[%emt 0:00:14]} 4. Nf3 {[%emt 0:00:28]} Nf6 {[%emt 0:00:33]} 5. Nbd2 {[%emt 0:00:36]} b6 {[%emt 0:03:00]} 6. Bd3 {[%emt 0:01:13]} O-O {[%emt 0:00:09]} 7. O-O {[%emt 0:00:26]} Bb7 {[%emt 0:03:15]} 8. Re1 {[%emt 0:01:02]} d6 {[%emt 0:00:22]} 9. Qe2 {[%emt 0:02:29]} Nc6 {[%emt 0:01:32]} 10. Nf1 {[%emt 0:03:04]} a6 {[%emt 0:02:53]} 11. Bd2 {[%emt 0:04:00]} Ne8 {[%emt 0:00:43]} 12. d5 {[%emt 0:04:35]} Ne5 {[%emt 0:00:07]} 13. Nxe5 {[%emt 0:00:12]} Bxe5 {[%emt 0:00:02]} 14. f4 {[%emt 0:00:56]} Bg7 {[%emt 0:00:03]} 15. e4 {[%emt 0:00:30]} e6 {[%emt 0:00:45]} 16. dxe6 {[%emt 0:02:17]} fxe6 {[%emt 0:00:02]} 17. Rad1 {[%emt 0:02:04]} Nc7 {[%emt 0:00:34]} 18. g3 {[%emt 0:02:25]} d5 {[%emt 0:09:43]} 19. e5 {[%emt 0:01:36]} Bc6 {[%emt 0:09:02]} 20. Qg4 {[%emt 0:05:45]} Qe7 {[%emt 0:14:09]} 21. h4 {[%emt 0:00:34]} Be8 {[%emt 0:01:18]} 22. Nh2 {[%emt 0:00:17]} d4 {[%emt 0:03:16]} 23. c4 {[%emt 0:00:24]} b5 {[%emt 0:00:18]} 24. b3 {[%emt 0:00:36]} a5 {[%emt 0:05:33]} 25. Nf3 {[%emt 0:00:56]} Rf5 {[%emt 0:15:17]} 26. Ng5 {[%emt 0:02:45]} a4 {[%emt 0:01:13]} 27. Re2 {[%emt 0:06:21]} axb3 {[%emt 0:00:23]} 28. axb3 {[%emt 0:00:08]} bxc4 {[%emt 0:00:18]} 29. bxc4 {[%emt 0:00:09]} Bc6 {[%emt 0:06:01]} 30. Rh2 {[%emt 0:03:27]} h6 {[%emt 0:03:32]} 31. Ne4 {[%emt 0:00:47]} Ra3 {[%emt 0:00:46]} 32. Bb1 {[%emt 0:07:00]} Rb3 {[%emt 0:09:30]} 33. Nd6 {[%emt 0:01:50]} Bf3 {[%emt 0:00:42]} 34. Qxg6 {[%emt 0:02:14]} Bxd1 {[%emt 0:00:26]} 35. Bxf5 {[%emt 0:00:48]} exf5 {[%emt 0:00:11]} 36. Nxf5 {[%emt 0:00:28]} Qd7 {[%emt 0:00:51]} 37. Nxh6+ {[%emt 0:03:05]} Kf8 {[%emt 0:01:39]} 38. Nf5 {[%emt 0:09:01]} Bc2 {[%emt 0:01:29]} 39. g4 {[%emt 0:01:52]} Ne8 {[%emt 0:02:10]} 40. e6 {[%emt 0:03:58]} Qb7 {[%emt 0:01:55]} 41. e7+ {[%emt 0:01:56]} Qxe7 {[%emt 0:00:07]} 42. Nxe7 {[%emt 0:00:10]} Bxg6 {[%emt 0:00:01]} 43. Nxg6+ {[%emt 0:00:12]} Kf7 {[%emt 0:00:15]} 44. h5 {[%emt 0:03:16]} Nd6 {[%emt 0:00:32]} 45. f5 {[%emt 0:01:03]} Nxc4 {[%emt 0:00:16]} 46. Bg5 {[%emt 0:06:08]} d3 {[%emt 0:00:38]} 47. Rf2 {[%emt 0:00:55]} Bd4 {[%emt 0:00:10]} 48. Nh8+ {[%emt 0:07:15]} Bxh8 {[%emt 0:02:44]} 49. f6 {[%emt 0:00:08]} Rb1+ {[%emt 0:00:52]} 50. Kg2 {[%emt 0:02:18]} Rb2 {[%emt 0:00:04]} 51. Rxb2 {[%emt 0:02:56]} Nxb2 {[%emt 0:00:02]} 52. Kf1 {[%emt 0:00:26]} Bxf6 {[%emt 0:00:04]} 53. Be3 {[%emt 0:00:56]} c4 {[%emt 0:00:49]} 54. g5 {[%emt 0:00:07]} Bc3 {[%emt 0:00:30]} 55. g6+ {[%emt 0:00:14]} Kg8 {[%emt 0:00:01]} 56. h6 {[%emt 0:00:43]} d2 {[%emt 0:00:07]} 57. h7+ {[%emt 0:00:30]} Kh8 {[%emt 0:00:13]} 0-1

[Event "XX Gran Hotel Bali-B 2023"]
[Site "Benidorm"]
[Date "2023.12.03"]
[Round "3.3"]
[White "Perez Gonzalez, Daniel"]
[Black "Bethencourt Hernandez, Alberto"]
[Result "0-1"]
[ECO "B06"]
[WhiteElo "1984"]
[BlackElo "1869"]
[Annotator "NA RC"]
[PlyCount "54"]
[EventDate "2023.12.02"]
[EventType "swiss"]
[EventCountry "ESP"]
[SourceTitle "playchess.com"]
[Source "ChessBase"]
[SourceQuality "1"]
[TimeControl "5400+30"]

1. e4 {[%emt 0:00:03]} g6 {[%emt 0:00:23]} 2. d4 {[%emt 0:00:13]} Bg7 {[%emt 0:00:20]} 3. Nf3 {[%emt 0:00:39]} d6 {[%emt 0:00:14]} 4. Bc4 {[%emt 0:00:21]} Nf6 {[%emt 0:01:39]} 5. Qe2 {[%emt 0:00:10]} O-O {[%emt 0:02:03]} 6. O-O {[%emt 0:00:49]} Bg4 {[%emt 0:03:23]} 7. Nbd2 {[%emt 0:02:31]} Nc6 {[%emt 0:01:31]} 8. c3 {[%emt 0:00:17]} e5 {[%emt 0:01:20]} 9. h3 {[%emt 0:04:21]} Bd7 {[%emt 0:02:30]} 10. dxe5 {[%emt 0:02:11]} dxe5 {[%emt 0:00:07]} 11. Rd1 {[%emt 0:08:48]} Qe7 {[%emt 0:01:58]} 12. Nf1 {[%emt 0:01:17]} Na5 {[%emt 0:05:18]} 13. Bd3 {[%emt 0:02:16]} Nh5 {[%emt 0:01:11]} 14. Be3 {[%emt 0:08:18]} b6 {[%emt 0:03:45]} 15. Bb5 {[%emt 0:13:18]} c6 {[%emt 0:04:47]} 16. Ba6 {[%emt 0:07:43]} Be6 {[%emt 0:04:46]} 17. c4 {[%emt 0:08:55]} c5 {[%emt 0:08:46]} 18. Ng5 {[%emt 0:09:59]} Nf4 {[%emt 0:02:56]} 19. Bxf4 {[%emt 0:00:06]} exf4 {[%emt 0:00:06]} 20. Nxe6 {[%emt 0:00:45]} fxe6 {[%emt 0:00:06]} 21. Bb5 {[%emt 0:02:22]} Qf6 {[%emt 0:01:04]} 22. Bd7 {[%emt 0:05:12]} Kh8 {[%emt 0:07:28]} 23. Nh2 {[%emt 0:06:05]} Rad8 {[%emt 0:05:31]} 24. Qg4 {[%emt 0:00:08]} Nxc4 {[%emt 0:02:34]} 25. Nf3 {[%emt 0:01:46]} Nxb2 {[%emt 0:01:58]} 26. Ng5 {[%emt 0:06:20]} Nxd1 {[%emt 0:01:15]} 27. Qh4 {[%emt 0:00:09]} h6 {[%emt 0:00:25]} 0-1

[Event "XX Gran Hotel Bali-B 2023"]
[Site "Benidorm"]
[Date "2023.12.03"]
[Round "3.4"]
[White "Conde Chamizo, Pablo"]
[Black "Fabre Massana, Miquel"]
[Result "1/2-1/2"]
[ECO "D31"]
[WhiteElo "1905"]
[BlackElo "1982"]
[Annotator "NA RC"]
[PlyCount "95"]
[EventDate "2023.12.02"]
[EventType "swiss"]
[EventCountry "ESP"]
[SourceTitle "playchess.com"]
[Source "ChessBase"]
[SourceQuality "1"]
[TimeControl "5400+30"]

1. c4 {[%emt 0:05:17]} c6 {[%emt 0:00:11]} 2. d4 {[%emt 0:00:52]} d5 {[%emt 0:00:27]} 3. Nc3 {[%emt 0:00:45]} e6 {[%emt 0:00:43]} 4. Bf4 {[%emt 0:01:14]} dxc4 {[%emt 0:02:54]} 5. e4 {[%emt 0:02:38]} b5 {[%emt 0:00:46]} 6. Nf3 {[%emt 0:02:30]} Nf6 {[%emt 0:02:01]} 7. Qc2 {[%emt 0:02:21]} Bb7 {[%emt 0:02:42]} 8. Be2 {[%emt 0:02:43]} Be7 {[%emt 0:03:45]} 9. h4 {[%emt 0:03:37]} Nbd7 {[%emt 0:02:46]} 10. Rd1 {[%emt 0:08:20]} Qa5 {[%emt 0:04:01]} 11. Kf1 {[%emt 0:07:52]} Rd8 {[%emt 0:07:17]} 12. e5 {[%emt 0:06:05]} Nd5 {[%emt 0:03:33]} 13. Nxd5 {[%emt 0:02:49]} cxd5 {[%emt 0:01:27]} 14. Ng5 {[%emt 0:00:11]} Nf8 {[%emt 0:11:06]} 15. Rh3 {[%emt 0:05:40]} Rc8 {[%emt 0:03:49]} 16. Bg4 {[%emt 0:10:12]} b4 {[%emt 0:03:48]} 17. Rf3 {[%emt 0:02:34]} Bxg5 {[%emt 0:05:05]} 18. Bxg5 {[%emt 0:01:16]} Bc6 {[%emt 0:01:16]} 19. Qc1 {[%emt 0:06:39]} Qc7 {[%emt 0:03:35]} 20. Qf4 {[%emt 0:01:55]} Ng6 {[%emt 0:01:37]} 21. Qd2 {[%emt 0:00:59]} c3 {[%emt 0:01:23]} 22. bxc3 {[%emt 0:00:58]} bxc3 {[%emt 0:00:25]} 23. Qc2 {[%emt 0:01:01]} O-O {[%emt 0:07:20]} 24. Rc1 {[%emt 0:03:00]} Rfe8 {[%emt 0:03:48]} 25. Kg1 {[%emt 0:03:43]} Bb5 {[%emt 0:00:54]} 26. Rxc3 {[%emt 0:01:37]} Qxc3 {[%emt 0:00:31]} 27. Qxc3 {[%emt 0:00:11]} Rxc3 {[%emt 0:00:16]} 28. Rxc3 {[%emt 0:00:02]} h6 {[%emt 0:00:51]} 29. h5 {[%emt 0:00:44]} Nxe5 {[%emt 0:00:55]} 30. dxe5 {[%emt 0:00:42]} hxg5 {[%emt 0:00:17]} 31. Rc7 {[%emt 0:02:07]} a6 {[%emt 0:00:43]} 32. Kh2 {[%emt 0:01:02]} Rd8 {[%emt 0:01:38]} 33. Kg3 {[%emt 0:00:37]} d4 {[%emt 0:01:16]} 34. Bd1 {[%emt 0:00:18]} d3 {[%emt 0:00:51]} 35. a4 {[%emt 0:00:59]} Be8 {[%emt 0:01:00]} 36. Kf3 {[%emt 0:01:06]} Rb8 {[%emt 0:06:49]} 37. Ke3 {[%emt 0:01:51]} Rb1 {[%emt 0:03:35]} 38. Rc8 {[%emt 0:00:40]} Kf8 {[%emt 0:01:58]} 39. Bf3 {[%emt 0:02:13]} Ke7 {[%emt 0:01:22]} 40. Rc7+ {[%emt 0:01:26]} Kd8 {[%emt 0:01:26]} 41. Ra7 {[%emt 0:00:05]} Ra1 {[%emt 0:03:19]} 42. Rxa6 {[%emt 0:00:36]} Rxa4 {[%emt 0:01:07]} 43. Rd6+ {[%emt 0:01:13]} Ke7 {[%emt 0:00:13]} 44. Rxd3 {[%emt 0:00:07]} f6 {[%emt 0:01:15]} 45. Rb3 {[%emt 0:04:50]} Rh4 {[%emt 0:02:45]} 46. Rb7+ {[%emt 0:00:12]} Kf8 {[%emt 0:00:29]} 47. Rb8 {[%emt 0:00:18]} Ke7 {[%emt 0:00:45]} 48. Rb7+ {[%emt 0:00:34]} 1/2-1/2

[Event "XX Gran Hotel Bali-B 2023"]
[Site "Benidorm"]
[Date "2023.12.03"]
[Round "3.5"]
[White "Calatayud Ortega, Alberto"]
[Black "Sempere Domenech, Abel"]
[Result "0-1"]
[ECO "C24"]
[WhiteElo "1863"]
[BlackElo "1981"]
[Annotator "NA RC"]
[PlyCount "66"]
[EventDate "2023.12.02"]
[EventType "swiss"]
[EventCountry "ESP"]
[SourceTitle "playchess.com"]
[Source "ChessBase"]
[SourceQuality "1"]
[TimeControl "5400+30"]

1. e4 {[%emt 1:31:00]} e5 2. Bc4 {[%emt 0:00:00]} Nf6 {[%emt 0:00:52]} 3. d3 {[%emt 0:00:00]} c6 {[%emt 0:01:02]} 4. Bg5 {[%emt 0:00:00]} Bc5 {[%emt 0:08:25]} 5. Nf3 {[%emt 0:00:00]} d6 {[%emt 0:00:25]} 6. Nbd2 {[%emt 0:00:00]} O-O {[%emt 0:04:44]} 7. h3 {[%emt 0:00:00]} Nbd7 {[%emt 0:01:53]} 8. O-O {[%emt 0:00:00]} Re8 {[%emt 0:04:32]} 9. a4 {[%emt 0:00:00]} a5 {[%emt 0:02:52]} 10. c3 {[%emt 0:00:00]} h6 {[%emt 0:04:15]} 11. Bh4 {[%emt 0:00:00]} Bb6 {[%emt 0:01:07]} 12. Kh1 {[%emt 0:00:00]} Nf8 {[%emt 0:01:03]} 13. Qb3 {[%emt 0:00:00]} Be6 {[%emt 0:14:08]} 14. Bxf6 {[%emt 0:00:00]} gxf6 {[%emt 0:00:01]} 15. Bxe6 {[%emt 0:00:00]} fxe6 {[%emt 0:03:44]} 16. Nc4 {[%emt 0:00:00]} Bc7 {[%emt 0:00:49]} 17. Ne3 {[%emt 0:00:00]} Ng6 {[%emt 0:01:33]} 18. g3 {[%emt 0:00:00]} Qd7 {[%emt 0:02:24]} 19. Rg1 {[%emt 0:00:00]} Kh7 {[%emt 0:01:57]} 20. Rg2 {[%emt 0:00:00]} Rg8 {[%emt 0:03:18]} 21. Rag1 {[%emt 0:00:00]} Raf8 {[%emt 0:00:25]} 22. h4 {[%emt 0:00:00]} Bd8 {[%emt 0:06:39]} 23. d4 {[%emt 0:11:00]} Qf7 {[%emt 0:35:52]} 24. Rh2 {[%emt 0:00:00]} Nh8 {[%emt 0:00:00]} 25. g4 {[%emt 0:00:00]} h5 {[%emt 0:00:00]} 26. g5 {[%emt 0:00:00]} fxg5 {[%emt 0:00:00]} 27. Nxg5+ {[%emt 0:00:00]} Bxg5 {[%emt 0:00:00]} 28. Rxg5 {[%emt 0:00:00]} Rxg5 {[%emt 0:00:00]} 29. hxg5 {[%emt 0:00:00]} Qf3+ {[%emt 0:00:00]} 30. Kg1 {[%emt 0:00:00]} Rg8 {[%emt 0:00:00]} 31. Rg2 {[%emt 0:00:00]} Ng6 {[%emt 0:00:00]} 32. Qxe6 Qxe4 33. Nf5 {[%emt 0:01:28]} Qxg2+ {[%emt 0:00:00]} 0-1